Cogmind - Beta 13 --- EXPLORER MODE // 2024.05.30 @ 00:39:23 Player: arsenier Result: Destroyed by DAS Turret with DAS Cannon Performance ------------- Evolutions (1) 500 Regions Visited (5) 1000 Robots Destroyed (46) 230 Value Destroyed (1293) 1293 Prototype IDs (5) 100 Alien Tech Used (0) 0 Bonus (0) 0 TOTAL SCORE: 3123 Bonus ------- None Cogmind --------- Core Integrity 0/400 Matter 5/300 Energy 98/100 System Corruption 4% Temperature Cool (0) Movement Core (50) Location -9/Exiles Parts ------- > --- POWER (1) -------- (None) > --- PROPULSION (2) --- (None) > --- UTILITY (5) ------ (None) > --- WEAPON (2) ------- (None) > --- INVENTORY (5) ---- Huge Storage Unit Large Matter Pod (150) Targeting Computer Heavy Armor Plating Peak State ------------ > --- POWER ------------ Improved Ion Engine > --- PROPULSION ------- Improved Treads Improved Treads > --- UTILITY ---------- Large Storage Unit Visual Processing Unit Signal Interpreter Seismic Detector Improved Targeting Computer > --- WEAPON ----------- Enhanced Autogun Enhanced Autogun > --- INVENTORY -------- Ion Engine Ion Engine Light Treads Huge Storage Unit Large Matter Pod Sensor Array Propulsion Shielding Light Armor Plating Heavy Armor Plating Hardened Light Armor Plating Light Assault Rifle Heavy Assault Rifle Rocket Launcher Rocket Launcher [Rating: 23] Favorites ----------- Power Improved Ion Engine Engine Improved Ion Engine Propulsion Improved Treads Treads Improved Treads Utility Large Storage Unit Device Seismic Detector Storage Large Storage Unit Processor Signal Interpreter Protection Light Armor Plating Weapon Enhanced Autogun Energy Gun Medium Laser Ballistic Gun Enhanced Autogun Launcher Rocket Launcher Special Weapon Mining Laser Build | -11 -10 -10 -9 -9 -9 ------- Run | Yrd Mat Min Mat Min Exi Slots Evolved 3 | . 1 . 2 . . Power . | . . . . . . Propulsion . | . . . . . . Utility 3 | . 1 . 2 . . Weapon . | . . . . . . Parts Attached 52 | 7 10 5 24 . 6 Power 3 | 1 . 1 1 . . Engine 3 | 1 . 1 1 . . Core . | . . . . . . Reactor . | . . . . . . Propulsion 6 | 2 . . 4 . . Treads 6 | 2 . . 4 . . Leg . | . . . . . . Wheel . | . . . . . . Hover . | . . . . . . Flight . | . . . . . . Utility 23 | 2 6 3 11 . 1 Device 5 | . 2 2 1 . . Storage 4 | 1 1 . 2 . . Processor 5 | . 2 . 3 . . Hackware . | . . . . . . Protection 9 | 1 1 1 5 . 1 Artifact . | . . . . . . Weapon 20 | 2 4 1 8 . 5 Energy Gun 6 | 2 4 . . . . Energy Cannon . | . . . . . . Ballistic Gun 10 | . . 1 7 . 2 Ballistic Cannon . | . . . . . . Launcher 2 | . . . . . 2 Special Weapon 2 | . . . 1 . 1 Impact Weapon . | . . . . . . Slashing Weapon . | . . . . . . Piercing Weapon . | . . . . . . Special Melee Weapon . | . . . . . . Unidentified Prototypes 1 | . . . 1 . . Parts Lost 8 | . . 1 1 . 6 Power 1 | . . . . . 1 Propulsion 3 | . . 1 . . 2 Utility 2 | . . . 1 . 1 Weapon 2 | . . . . . 2 Highest Loss Streak 6 | . . 1 1 . 6 To Critical Strikes 1 | . . . . . 1 Average Slot Usage (%) 94 | . 96 87 98 100 69 Engine 10 | . 9 12 10 10 6 Treads 18 | . 25 12 19 20 10 Device 7 | . 12 7 5 10 5 Storage 10 | . 12 12 10 10 7 Processor 20 | . 12 12 25 30 22 Protection 3 | . . 4 7 . 1 Energy Gun 8 | . 24 12 2 . . Ballistic Gun 13 | . . 11 17 20 13 Naked Turns 72 | . . . . . 72 Heaviest Build 41 | 21 25 32 41 34 34 Greatest Support 46 | 40 40 40 46 46 46 Greatest Overweight (x) 8 | 1 . 1 1 . 8 Average Overweight (x) . | . . . . . . Largest Inventory Capacity 25 | 10 15 15 25 15 15 Average Capacity 14 | 8 10 15 15 15 13 Most Carried 15 | 4 12 12 15 15 15 Average Carried 11 | 2 6 10 13 14 12 Final Capacity 15 | 10 15 15 15 15 5 Final Carried 15 | 4 12 11 15 15 5 Class Distribution -------------------- 100% | Hacker-Mutant Dominant Class ---------------- Hacker-Mutant | -10/Materials Hacker-Mutant | -10/Mines Hacker-Mutant | -9/Materials Hacker-Mutant | -9/Mines Hacker-Mutant | -9/Exiles Resources | -11 -10 -10 -9 -9 -9 ----------- Run | Yrd Mat Min Mat Min Exi Matter Collected 1369 | 203 267 60 625 210 4 Remotely . | . . . . . . Salvage Created 1709 | 30 454 34 1003 136 52 Parts 105 | 1 25 2 71 6 . Haulers Intercepted . | . . . . . . Recyclers Shooed 2 | . 2 . . . . Parts Field Recycled . | . . . . . . Retrieved Matter . | . . . . . . Parts Self-Destructed . | . . . . . . Prevented . | . . . . . . Kills | -11 -10 -10 -9 -9 -9 ------- Run | Yrd Mat Min Mat Min Exi Combat Hostiles Destroyed 44 | . 9 2 21 5 7 Melee 1 | . 1 . . . . Guns 39 | . 8 2 21 5 3 AOE 4 | . . . . . 4 Classes Destroyed 12 | 1 5 1 3 1 1 Worker 1 | . 1 . . . . Builder 2 | . 1 . 1 . . Tunneler 1 | 1 . . . . . Recycler 1 | . 1 . . . . Operator 1 | . . . 1 . . Watcher 3 | . 1 . 2 . . Swarmer 10 | . . 2 5 3 . Grunt 15 | . 9 . 5 1 . Brawler 1 | . . . . 1 . Duelist 1 | . . . 1 . . Sentry 10 | . . . 10 . . Assembled 7 | . . . . . 7 Best Kill Streak 7 | 1 3 2 5 3 7 Combat Bots Only 7 | . 3 2 5 3 7 Max Kills in Single Turn 4 | 1 1 1 2 2 4 Gunslinging 1 | . . . 1 1 . Exploded 4 | . . . . . 4 Melee 1 | . 1 . . . . Uniques/NPCs Destroyed . | . . . . . . Combat | -11 -10 -10 -9 -9 -9 -------- Run | Yrd Mat Min Mat Min Exi Hostile Shots Fired 291 | . 68 6 86 15 116 Missed 81 | . 16 3 26 4 32 Damage Taken 1988 | . 453 14 478 51 992 Core 478 | . 42 . 34 7 395 Absorbed by Shields . | . . . . . . Ignored by Resistances 1193 | . 282 11 300 38 562 Regen/Repaired (Parts) 59 | . 59 . . . . Core Remaining (%) 91 | 100 . 83 . . . Volleys Fired 156 | 3 37 2 83 10 21 Largest 2 | 2 2 2 2 2 2 Hottest 100 | 90 100 100 100 50 66 Shots Fired 294 | 6 73 5 147 21 42 Gun 273 | 6 73 5 138 21 30 Cannon . | . . . . . . Launcher 12 | . . . . . 12 Special 9 | . . . 9 . . Kinetic 179 | . . . 128 21 30 Thermal 103 | 6 73 5 19 . . Explosive 12 | . . . . . 12 Electromagnetic . | . . . . . . Robot Hit Streak 32 | 4 20 24 32 13 26 Robot Miss Streak 1 | 1 1 1 1 1 1 Penetration Max . | . . . . . . Secondary Targets 7 | . 1 . 4 2 . Max Gunslinging Chain 1 | . 1 . 1 1 . Shots Hit Robots 225 | 4 52 4 111 17 37 Core Hits 92 | 1 25 2 41 6 17 Critical Kills 1 | . . . 1 . . Critical Parts Destroyed . | . . . . . . Critical Strikes 9 | . 5 1 3 . . Burn 8 | . 5 1 2 . . Destroy 1 | . . . 1 . . Melee Attacks . | . . . . . . Impact . | . . . . . . Slashing . | . . . . . . Piercing . | . . . . . . Sneak Attacks . | . . . . . . Combat Hostiles . | . . . . . . Follow-up Attacks . | . . . . . . Damage Inflicted 3412 | 48 710 49 1602 291 712 Guns 3122 | 48 686 49 1595 287 457 Cannons . | . . . . . . Explosions 255 | . . . . . 255 Melee . | . . . . . . Ramming 35 | . 24 . 7 4 . Kinetic 2228 | . . . 1484 287 457 Thermal 894 | 48 686 49 111 . . Explosive 255 | . . . . . 255 Electromagnetic . | . . . . . . Impact . | . . . . . . Slashing . | . . . . . . Piercing . | . . . . . . Highest Corruption 4 | . 1 1 4 4 4 Average Corruption 3 | . 1 1 3 4 4 Corruption Purged . | . . . . . . Corruption Blocked . | . . . . . . Effects 72 | . . 13 28 25 6 Message Errors 18 | . . 2 10 5 1 Matter Fused 16 | . . 2 7 6 1 Heat Flow Errors 9 | . . . 3 6 . Energy Discharges 8 | . . 4 1 3 . Parts Rejected 1 | . . . . . 1 Parts Fused 1 | . . . 1 . . Data Loss (minor) 9 | . . 4 2 2 1 Data Loss (major) 4 | . . . 2 2 . Misfires 5 | . . 1 2 1 1 Alerts 1 | . . . . . 1 Overload Shots . | . . . . . . Overflow Damage . | . . . . . . Projectiles . | . . . . . . Explosions . | . . . . . . Melee . | . . . . . . Knockbacks . | . . . . . . Impact . | . . . . . . Kinetic . | . . . . . . Secondary . | . . . . . . Self-Inflicted Damage 27 | . . . 5 . 22 Shots 2 | . . . . . 2 Rammed 10 | . 8 . 1 1 . Targets Rammed 12 | . 10 . 1 1 . Kicked . | . . . . . . Crushed 2 | . 2 . . . . Highest Temperature 312 | 117 312 96 244 236 54 Average Temperature 78 | 60 125 45 51 99 22 Received Heat Transfer 648 | . 372 . 270 6 . Effects 2 | . 2 . . . . Energy Bleed 1 | . 1 . . . . Short Circuit 1 | . 1 . . . . Siege Activations . | . . . . . . Robots Corrupted . | . . . . . . Combat Hostiles . | . . . . . . Parts Fried . | . . . . . . Impact Corruptions . | . . . . . . Robots Melted . | . . . . . . Combat Hostiles . | . . . . . . Parts Melted 5 | . 4 . 1 . . Heat Transferred 3150 | 124 2323 222 481 . . Parts Sabotaged . | . . . . . . Parts Stolen . | . . . . . . Parts Stripped . | . . . . . . Power Chain Reactions . | . . . . . . Alert | -11 -10 -10 -9 -9 -9 ------- Run | Yrd Mat Min Mat Min Exi Peak Influence 267 | 5 182 50 267 81 . Initial 11 | . 2 1 . 11 . Average 41 | 2 56 13 70 15 . Maximum Alert Level 1 | . . . 1 . . Low Security (%) 98 | 100 100 100 95 100 . Level 1 1 | . . . 4 . . Level 2 . | . . . . . . Level 3 . | . . . . . . Level 4 . | . . . . . . Level 5 . | . . . . . . High Security . | . . . . . . Max Security . | . . . . . . Squads Dispatched 3 | . 1 . 2 . . Investigation 1 | . 1 . . . . Extermination . | . . . . . . Reinforcement 2 | . . . 2 . . Assault . | . . . . . . Garrison . | . . . . . . Intercept . | . . . . . . Searches Triggered . | . . . . . . Construction Impeded . | . . . . . . Haulers Reinforced . | . . . . . . Active Scanning Responses . | . . . . . . Cargo Convoy Interrupts . | . . . . . . Stealth | -11 -10 -10 -9 -9 -9 --------- Run | Yrd Mat Min Mat Min Exi Distress Signals 6 | . 2 . 4 . . Communications Jammed . | . . . . . . Distress Signals . | . . . . . . Times Spotted 69 | . 18 2 33 5 11 Peak Tracking Total 9 | . 4 2 8 3 9 Tactical Retreats 1 | . . . . . 1 Traps | -11 -10 -10 -9 -9 -9 ------- Run | Yrd Mat Min Mat Min Exi Traps Triggered 9 | . 5 . 4 . . Indirectly . | . . . . . . Trap Hack Attempts . | . . . . . . Triggered . | . . . . . . Disarmed . | . . . . . . Reprogrammed 4 | . . . 4 . . Reused . | . . . . . . Traps Extracted . | . . . . . . Installed . | . . . . . . Triggered . | . . . . . . Machines | -11 -10 -10 -9 -9 -9 ---------- Run | Yrd Mat Min Mat Min Exi Machines Disabled 6 | . . . 1 . 5 Max in Single Turn 2 | . . . 1 . 2 Machines Repaired . | . . . . . . Machines Dismantled . | . . . . . . Machines Sabotaged . | . . . . . . Overloaded Fab Kills . | . . . . . . Hacking | -11 -10 -10 -9 -9 -9 --------- Run | Yrd Mat Min Mat Min Exi Machines Accessed 17 | . 8 . 9 . . Terminals 15 | . 6 . 9 . . Fabricators . | . . . . . . Repair Stations 1 | . 1 . . . . Recycling Units 1 | . 1 . . . . Scanalyzers . | . . . . . . Garrison Access . | . . . . . . Total Hacks 50 | . 21 . 29 . . Successful 32 | . 14 . 18 . . Failed 18 | . 7 . 11 . . Catastrophic 5 | . 3 . 2 . . Database Lockouts . | . . . . . . Manual 24 | . 9 . 14 . 1 Terminals 47 | . 18 . 29 . . Fabricators . | . . . . . . Repair Stations 2 | . 2 . . . . Recycling Units 1 | . 1 . . . . Scanalyzers . | . . . . . . Garrison Access . | . . . . . . Terminal Hacks 27 | . 10 . 17 . . Record 2 | . . . 2 . . Part Schematic 2 | . 1 . 1 . . Robot Analysis 2 | . 1 . 1 . . Prototype ID Bank 2 | . 2 . . . . Branch Access Points 2 | . 1 . 1 . . Emergency Access Points 2 | . 1 . 1 . . Machine Index 1 | . . . 1 . . Alert Level 3 | . 1 . 2 . . Unreport Threat 1 | . . . 1 . . Locate Traps 1 | . . . 1 . . Reprogram Traps 1 | . . . 1 . . Maintenance Status 1 | . 1 . . . . Investigation Status 1 | . . . 1 . . Hauler Manifests 1 | . . . 1 . . Registered Components 1 | . . . 1 . . Zone Layout 4 | . 2 . 2 . . Fabricator Hacks . | . . . . . . Repair Station Hacks 2 | . 2 . . . . Scan Component 1 | . 1 . . . . Repair 1 | . 1 . . . . Recycling Unit Hacks 1 | . 1 . . . . Retrieve Components 1 | . 1 . . . . Scanalyzer . | . . . . . . Garrison Access Hacks . | . . . . . . Unauthorized Hacks 2 | . 1 . 1 . . Terminals 2 | . 1 . 1 . . Botnet 2 | . 1 . 1 . . Fabricators . | . . . . . . Repair Stations . | . . . . . . Recycling Units . | . . . . . . Scanalyzers . | . . . . . . Garrison Access . | . . . . . . Data Cores Recovered . | . . . . . . Used . | . . . . . . Hacking Detections 13 | . 6 . 7 . . Full Trace Events 2 | . 1 . 1 . . Feedback Events . | . . . . . . Feedback Blocked . | . . . . . . Robot Schematics Acquired . | . . . . . . Robots Built . | . . . . . . Authchips . | . . . . . . Time . | . . . . . . Total Robot Build Rating . | . . . . . . Part Schematics Acquired 1 | . 1 . . . . Parts Built . | . . . . . . Authchips . | . . . . . . Time . | . . . . . . Total Part Build Rating . | . . . . . . Parts Repaired 1 | . 1 . . . . Time 26 | . 26 . . . . Parts Recycled . | . . . . . . Recycled Matter . | . . . . . . Retrieved Matter . | . . . . . . Retrieved Components 7 | . 7 . . . . Parts Scanalyzed . | . . . . . . Part Schematics Acquired . | . . . . . . Parts Damaged . | . . . . . . Bothacking | -11 -10 -10 -9 -9 -9 ------------ Run | Yrd Mat Min Mat Min Exi Used RIF Installer . | . . . . . . Robots Hacked . | . . . . . . Non-combat . | . . . . . . Combat . | . . . . . . Robot Hacks Applied . | . . . . . . Relay Couplers Released . | . . . . . . Fabnet Peak Effective % . | . . . . . . Robots Rewired . | . . . . . . Allies Hacked . | . . . . . . Hacks Repelled . | . . . . . . Allies | -11 -10 -10 -9 -9 -9 -------- Run | Yrd Mat Min Mat Min Exi Total Allies 3 | . . . . 3 . Largest Group 3 | . . . . 3 3 Highest-Rated Group 40 | . . . . 40 40 Highest-Rated Ally 16 | . . . . 16 16 Total Orders . | . . . . . . Ally Attacks 2 | . . . . . 2 Total Damage 33 | . . . . . 33 Kills . | . . . . . . Allies Corrupted . | . . . . . . Allies Melted . | . . . . . . Intel | -11 -10 -10 -9 -9 -9 ------- Run | Yrd Mat Min Mat Min Exi Robot Analysis Total 2 | . 1 . 1 . . Derelict Logs Recovered 1 | . . 1 . . . Drone Launches . | . . . . . . Drone Recoveries . | . . . . . . Exploration | -11 -10 -10 -9 -9 -9 ------------- Run | Yrd Mat Min Mat Min Exi Turns Passed 6010 | 144 1070 1317 1983 1127 369 Spaces Moved 3204 | 82 570 549 1056 675 272 Core 170 | 14 . . . . 156 Treads 3034 | 68 570 549 1056 675 116 Legs . | . . . . . . Wheels . | . . . . . . Hover . | . . . . . . Flight . | . . . . . . Fastest Speed 50 | 50 160 160 160 160 50 Average Speed 168 | 147 160 236 160 160 112 Slowest Speed 450 | 160 160 240 240 160 450 Overloaded Moves . | . . . . . . Propulsion Burnouts . | . . . . . . Robots Hopped . | . . . . . . Cave-ins Triggered 1 | . . . . . 1 Exploration Rate (%) 72 | 6 88 99 89 98 57 Regions Visited 5 Branch Regions 3 Pre-discovered Areas . | . . . . . . Known Exits Taken 5 | 1 1 1 1 1 . Unknown Exits Taken . | . . . . . . Scrap Searched 1 | . . . . 1 . Spaces Dug 8 | . . . 8 . . Terrain Destroyed 47 | . . . 8 . 39 Melee . | . . . . . . Projectile 8 | . . . 8 . . AOE 39 | . . . . . 39 Terrain Rammed 1 | . . . 1 . . Walls Destroyed . | . . . . . . Machines Disabled . | . . . . . . Actions | -11 -10 -10 -9 -9 -9 --------- Run | Yrd Mat Min Mat Min Exi Total 3526 | 97 645 566 1205 710 303 Wait 62 | . 11 7 20 23 1 Move 3199 | 81 569 548 1055 674 272 Hop . | . . . . . . Pick Up 24 | 6 7 1 9 1 . Fast Attach 16 | 5 4 1 6 . . Attach 8 | 2 1 1 3 . 1 Detach 2 | . 1 1 . . . Swap 28 | . 5 3 15 . 5 Drop 15 | . . 2 12 1 . Fire 156 | 3 37 2 83 10 21 Melee . | . . . . . . Ram 1 | . . . 1 . . Kick . | . . . . . . Crush 12 | . 10 . 1 1 . Escape Stasis . | . . . . . . Rewire 3 | . . . . . 3 Trap . | . . . . . . Miscellaneous . | . . . . . . Route ------- -11/Scrapyard -10/Materials (discovered 4 exits: *Mat x2 / *Min x2) -10/Mines (discovered 2 exits: *Mat x2) -9/Materials (discovered 6 exits: *Mat x2 / *Min x2 / *Sto x2) -9/Mines (discovered 3 exits: *Mat x2 / *Exi) -9/Exiles (discovered 1 exit: *Min) History --------- Turn | Location | Event 15 | -11/Scrapyard | Identified exit to Materials 15 | -11/Scrapyard | Discovered exit to Materials (range 15) 145 | -11/Scrapyard | Entered Materials 145 | -10/Materials | Evolved 1 slot: Utility x1 173 | -10/Materials | Identified exit to Mines 303 | -10/Materials | Build established: Hacker-Mutant 586 | -10/Materials | Identified exit to Materials 586 | -10/Materials | Discovered exit to Materials (range 12) 600 | -10/Materials | Repaired Med. Laser 1047 | -10/Materials | Discovered exit to Materials (range 11) 1215 | -10/Materials | Entered Mines 1722 | -10/Mines | Received a Rocket Launcher from a helpful Derelict 2098 | -10/Mines | Discovered exit to Materials (range 10) 2532 | -10/Mines | Entered Materials 2532 | -9/Materials | Evolved 2 slots: Utility x2 2622 | -9/Materials | Identified exit to Mines 2622 | -9/Materials | Identified exit to Storage 2915 | -9/Materials | Identified exit to Materials 2915 | -9/Materials | Discovered exit to Materials (range 10) 3212 | -9/Materials | Discovered exit to Materials (range 3) 4515 | -9/Materials | Entered Mines 4565 | -9/Mines | Discovered exit to Materials (range 11) 4948 | -9/Mines | Discovered exit to Materials (range 6) 5026 | -9/Mines | Deemed a non-threat by the Exiles lab entrance 5028 | -9/Mines | Identified exit to Exiles 5028 | -9/Mines | Discovered exit to Exiles (range 5) 5468 | -9/Mines | Assisted by bots powering up and referring to "LRC-V3" 5642 | -9/Mines | Entered Exiles 5642 | -9/Exiles | Accompanied by 3 allies 5668 | -9/Exiles | Identified exit to Mines 5668 | -9/Exiles | Discovered exit to Mines (range 14) 5719 | -9/Exiles | Met 8R-AWN 5745 | -9/Exiles | Met EX-HEX 5819 | -9/Exiles | Attacked by the Exiles 5857 | -9/Exiles | Lost 3 allies 5873 | -9/Exiles | Destroyed 7 combat bots 5906 | -9/Exiles | Crushed by falling debris 5939 | -9/Exiles | Released all parts (4) 5941 | -9/Exiles | Core integrity fell below 50% 5958 | -9/Exiles | Lost 6 parts (1p2n1u2w) 6006 | -9/Exiles | Core integrity fell below 20% 6011 | -9/Exiles | Destroyed by DAS Turret with DAS Cannon Last Messages --------------- 05960_ HV Slug penetrates Wall. 05960_ Penetrated by HV Slug. 05960_ HV Slug penetrates Wall. 05971_ Connecting with BIN's Terminal... 05984_ System corrupted: IFF burst signal emitted. 05984_ Connecting with EX-Vault Access... 05988_ Connecting with HEX's Terminal... 05994_ Penetrated by HV Slug. 05994_ HV Slug penetrates Wall. 05994_ Penetrated by HV Slug. 05994_ HV Slug penetrates Wall. 05998_ HV Slug penetrates Machine. 05998_ Machine disabled. 05998_ HV Slug penetrates Wall. 05998_ Penetrated by HV Slug. 05998_ HV Slug penetrates Machine. 06002_ Penetrated by HV Slug. 06002_ HV Slug penetrates Machine. 06002_ Machine disabled. 06002_ Penetrated by HV Slug. Map ----- +----------------------------------------------------+ | ????????????????????????????????#""X" #??? | | ????????????????????????????????#" #??? | | ????????????????????????????????#" ## #??? | | ????????????????????????????????#""""""?# #??? | | ????????????????????????????????##"###??# #??" | | ????????????????????????????????????????# #??" | | ????????????????????????????????????????# #??" | | ???????????????????????????????????????## ###" | | ???????????????????????????????????????#" | | ???????????????????????????????????????#" | | ???????????????????????????????????????# | | ???????????????????????????????????????# | | ???????????????????????????#???????????# | | ??????????????????????????? """????????#" | | ??????????????????????????" """#???????## | | ??????????????????????????" ?????????# | | ?????????????????????????"" ?????????#" " | | ?????????????????????????"" "#????????#" " | | ????????????????????????? ""?????????#" """ | | ??????????????????????????" "?????????##" #### | | ??????????????????????????# #????????##"" #??? | | ??????????? ####?????### ###?######"" #??? | | ??????????? """#####X# #"###"""""" ##?? | | ?????????? """""" " " ##? | | ??????????# % "" """ % " ## | | ???????????# @ " " | | ?????????????# | | ?????????????### % | | ???????????????## | | ????????????????## | | ?????????????????##" | | ??????????????????#""" """""" | | ??????????????????#" ######""" | | ??????????????????"" ""##????#####" | | ??????????????????""" """##?????????## | | ??????????????????"" """##?????????## | | ??????????????????"" ""#???????#### | | ??????????????????" #??#####?# # " | | ??????????????????"" ## ### | | ??????????????????? "" | | ??????????????????"" t | | ????????????????????"" | | ?????????????????????? | | ??????????????????????? " | | ???????????????????????? "" # | | ???????????????????????? ""## # # | | ???????????????????????? """"## # #### # | | ????????????????????????? """??## ## | | ????????????????????????? ""#??# !##? | | ?????????????????????????? ""?????## !#?? | +----------------------------------------------------+ Best States ------------- Heat Dissipation 28 Energy Generation 12 Energy Capacity 265 Matter Stores 300 Matter Capacity 300 Sight Range 18 Robot Scan Range 14 Terrain Scan Density 10 Armor Coverage 300 Resistance: KI 35 Resistance: TH 35 Resistance: EX 35 Resistance: EM 35 Resistance: I 35 Resistance: S 35 Resistance: P 35 Propulsion Shielding 33 Evasion (%) 50 Targeting Accuracy 6 Recoil Reduction 2 Offensive Hacking 20 Item Schematics ----------------- Targeting Computer | -10/Materials | Hacked Robot Schematics ------------------ None Fabricated ------------ Nothing Alien Tech Used ----------------- None Achievements -------------- True Hacker Unlikely Earthworm Challenges ------------ None Game ------ Seed GuidanceCryofiberMatrix Manual? 0 Play Time 01:05:34 Cumulative 15.1 hours Start 2024.05.29 @ 23:21:54 End 2024.05.30 @ 00:39:23 Sessions 1 Manual Loads 0 Difficulty Explorer Special Mode None Game No. 5 Rogue 0 Adventurer 0 Explorer 5 Win Type - Total 1 Types 1/0/0/0/0/0/0/0/0 Lore% 15 Gallery% 22 Achievement% 24 Wizard Run 0 Options --------- Layout 0 ASCII 0 Keyboard 1 Movement Arrows Keybinds 0 Fullscreen 1 Font 18/SmallcapsGlow Map View 76x50 Zoom Use 2% Tactical HUD 1 Map Filters NONE Filters NONE Steam 1 RUN: 616a9ab5-9565-4f0a-b6d5-da9272202d4d